Cogmind - Beta 13 @@@ ROGUE MODE // 2024.05.13 @ 14:06:23 Player: Lunace Result: Self-destructed Performance ------------- Evolutions (1) 500 Regions Visited (3) 600 Robots Destroyed (14) 70 Value Destroyed (215) 215 Prototype IDs (0) 0 Alien Tech Used (0) 0 Bonus (0) 0 TOTAL SCORE: 1385 Bonus ------- None Cogmind --------- Core Integrity 400/400 Matter 290/300 Energy 125/125 System Corruption 0% Temperature Cool (0) Movement Walking (190) Ox1 Location -9/Materials Parts ------- > --- POWER (1) -------- Light Ion Engine > --- PROPULSION (2) --- Aluminum Leg Aluminum Leg > --- UTILITY (2) ------ Large Storage Unit Structural Scanner > --- WEAPON (4) ------- Particle Gun Ripper > --- INVENTORY (15) --- Aluminum Leg Improved Heat Sink Medium Storage Unit Medium Matter Pod (100) Medium Matter Pod (29) Medium Matter Pod (0) Light Assault Rifle Peak State ------------ > --- POWER ------------ Ion Engine > --- PROPULSION ------- Aluminum Leg Aluminum Leg > --- UTILITY ---------- Improved Heat Sink Large Storage Unit > --- WEAPON ----------- Light Assault Rifle Ripper > --- INVENTORY -------- Medium Storage Unit Medium Matter Pod Medium Matter Pod Medium Matter Pod Light Assault Rifle [Rating: 12] Favorites ----------- Power Ion Engine Engine Ion Engine Propulsion Aluminum Leg Treads Light Treads Leg Aluminum Leg Utility Large Storage Unit Device Structural Scanner Storage Large Storage Unit Weapon Light Assault Rifle Energy Gun Particle Gun Ballistic Gun Light Assault Rifle Slashing Weapon Ripper Build | -11 -10 -10 -9 ------- Run | Yrd Mat Min Mat Slots Evolved 2 | . . . 2 Power . | . . . . Propulsion . | . . . . Utility . | . . . . Weapon 2 | . . . 2 Parts Attached 20 | 6 1 13 . Power 3 | 1 . 2 . Engine 3 | 1 . 2 . Core . | . . . . Reactor . | . . . . Propulsion 5 | 2 . 3 . Treads 2 | 2 . . . Leg 3 | . . 3 . Wheel . | . . . . Hover . | . . . . Flight . | . . . . Utility 4 | 1 1 2 . Device 2 | . . 2 . Storage 2 | 1 1 . . Processor . | . . . . Hackware . | . . . . Protection . | . . . . Artifact . | . . . . Weapon 8 | 2 . 6 . Energy Gun 4 | 1 . 3 . Energy Cannon . | . . . . Ballistic Gun 3 | 1 . 2 . Ballistic Cannon . | . . . . Launcher . | . . . . Special Weapon . | . . . . Impact Weapon . | . . . . Slashing Weapon 1 | . . 1 . Piercing Weapon . | . . . . Special Melee Weapon . | . . . . Unidentified Prototypes . | . . . . Parts Lost 6 | . . 6 . Power 1 | . . 1 . Propulsion 2 | . . 2 . Utility . | . . . . Weapon 3 | . . 3 . Highest Loss Streak 6 | . . 6 . To Critical Strikes . | . . . . Average Slot Usage (%) 88 | . 87 88 . Engine 14 | . 14 14 . Treads 8 | . 28 6 . Leg 10 | . . 11 . Device 5 | . . 5 . Storage 21 | . 16 22 . Energy Gun 8 | . 14 8 . Ballistic Gun 13 | . 14 12 . Slashing Weapon 5 | . . 6 . Naked Turns . | . . . . Heaviest Build 35 | 14 34 35 . Greatest Support 40 | 40 40 40 . Greatest Overweight (x) 11 | 4 . 11 . Average Overweight (x) 1 | . . 2 . Largest Inventory Capacity 15 | 8 15 15 . Average Capacity 14 | 7 9 15 . Most Carried 7 | 2 7 7 . Average Carried 5 | . 2 5 . Final Capacity 15 | 8 15 15 15 Final Carried 7 | 2 7 7 7 Class Distribution -------------------- 64% | Mutant 35% | Scavenger-Mutant Dominant Class ---------------- Mutant | -10/Materials Mutant | -10/Mines Mutant | -9/Materials Resources | -11 -10 -10 -9 ----------- Run | Yrd Mat Min Mat Matter Collected 551 | 214 . 337 . Remotely . | . . . . Salvage Created 364 | . . 364 . Parts 30 | . . 30 . Haulers Intercepted . | . . . . Recyclers Shooed . | . . . . Parts Field Recycled . | . . . . Retrieved Matter . | . . . . Parts Self-Destructed . | . . . . Prevented . | . . . . Kills | -11 -10 -10 -9 ------- Run | Yrd Mat Min Mat Combat Hostiles Destroyed 12 | . . 12 . Melee 1 | . . 1 . Guns 11 | . . 11 . Classes Destroyed 4 | . . 4 . Worker 1 | . . 1 . Builder 1 | . . 1 . Swarmer 8 | . . 8 . Grunt 3 | . . 3 . Best Kill Streak 2 | . . 2 . Combat Bots Only 2 | . . 2 . Max Kills in Single Turn 1 | . . 1 . Gunslinging . | . . . . Exploded . | . . . . Melee 1 | . . 1 . Uniques/NPCs Destroyed 1 | . . 1 . YI-UF0 (-10/Mines) Combat | -11 -10 -10 -9 -------- Run | Yrd Mat Min Mat Hostile Shots Fired 89 | . . 89 . Missed 27 | . . 27 . Damage Taken 1167 | . . 1167 . Core 212 | . . 212 . Absorbed by Shields . | . . . . Core Remaining (%) 57 | 100 . 15 . Volleys Fired 42 | . . 42 . Largest 2 | . . 2 . Hottest 85 | . . 85 . Shots Fired 60 | . . 60 . Gun 60 | . . 60 . Cannon . | . . . . Launcher . | . . . . Special . | . . . . Kinetic 26 | . . 26 . Thermal 33 | . . 33 . Explosive . | . . . . Electromagnetic 1 | . . 1 . Robot Hit Streak 12 | . . 12 . Robot Miss Streak 3 | . . 3 . Penetration Max . | . . . . Secondary Targets . | . . . . Shots Hit Robots 47 | . . 47 . Core Hits 20 | . . 20 . Critical Kills . | . . . . Critical Parts Destroyed . | . . . . Critical Strikes 1 | . . 1 . Burn 1 | . . 1 . Melee Attacks 6 | . . 6 . Impact . | . . . . Slashing 6 | . . 6 . Piercing . | . . . . Sneak Attacks 3 | . . 3 . Combat Hostiles . | . . . . Follow-up Attacks . | . . . . Damage Inflicted 825 | . . 825 . Guns 536 | . . 536 . Cannons . | . . . . Explosions . | . . . . Melee 289 | . . 289 . Ramming . | . . . . Kinetic 219 | . . 219 . Thermal 306 | . . 306 . Explosive . | . . . . Electromagnetic 11 | . . 11 . Impact . | . . . . Slashing 289 | . . 289 . Piercing . | . . . . Highest Corruption . | . . . . Average Corruption . | . . . . Corruption Purged . | . . . . Corruption Blocked . | . . . . Overload Shots . | . . . . Overflow Damage 20 | . . 20 . Projectiles . | . . . . Explosions . | . . . . Melee 20 | . . 20 . Knockbacks . | . . . . Impact . | . . . . Kinetic . | . . . . Secondary . | . . . . Self-Inflicted Damage . | . . . . Shots . | . . . . Rammed . | . . . . Targets Rammed . | . . . . Kicked . | . . . . Crushed . | . . . . Highest Temperature 240 | . . 240 . Average Temperature 56 | . . 56 . Received Heat Transfer 123 | . . 123 . Siege Activations . | . . . . Robots Corrupted . | . . . . Combat Hostiles . | . . . . Parts Fried . | . . . . Impact Corruptions . | . . . . Robots Melted . | . . . . Combat Hostiles . | . . . . Parts Melted 1 | . . 1 . Heat Transferred 888 | . . 888 . Parts Sabotaged . | . . . . Parts Stolen . | . . . . Parts Stripped . | . . . . Power Chain Reactions . | . . . . Alert | -11 -10 -10 -9 ------- Run | Yrd Mat Min Mat Peak Influence 150 | . . 150 . Initial 19 | . . . 19 Average 37 | . . 43 . Maximum Alert Level . | . . . . Low Security (%) 100 | 100 100 100 . Level 1 . | . . . . Level 2 . | . . . . Level 3 . | . . . . Level 4 . | . . . . Level 5 . | . . . . High Security . | . . . . Max Security . | . . . . Squads Dispatched . | . . . . Investigation . | . . . . Extermination . | . . . . Reinforcement . | . . . . Assault . | . . . . Garrison . | . . . . Intercept . | . . . . Searches Triggered . | . . . . Construction Impeded . | . . . . Haulers Reinforced . | . . . . Active Scanning Responses . | . . . . Cargo Convoy Interrupts . | . . . . Stealth | -11 -10 -10 -9 --------- Run | Yrd Mat Min Mat Distress Signals 1 | . . 1 . Communications Jammed . | . . . . Distress Signals . | . . . . Times Spotted 20 | . . 20 . Peak Tracking Total 3 | . . 3 . Tactical Retreats 5 | . . 5 . Traps | -11 -10 -10 -9 ------- Run | Yrd Mat Min Mat Traps Triggered . | . . . . Indirectly . | . . . . Trap Hack Attempts . | . . . . Triggered . | . . . . Disarmed . | . . . . Reprogrammed . | . . . . Reused . | . . . . Traps Extracted . | . . . . Installed . | . . . . Triggered . | . . . . Machines | -11 -10 -10 -9 ---------- Run | Yrd Mat Min Mat Machines Disabled . | . . . . Max in Single Turn . | . . . . Machines Repaired . | . . . . Machines Dismantled . | . . . . Machines Sabotaged . | . . . . Overloaded Fab Kills . | . . . . Hacking | -11 -10 -10 -9 --------- Run | Yrd Mat Min Mat Machines Accessed . | . . . . Terminals . | . . . . Fabricators . | . . . . Repair Stations . | . . . . Recycling Units . | . . . . Scanalyzers . | . . . . Garrison Access . | . . . . Total Hacks . | . . . . Successful . | . . . . Failed . | . . . . Catastrophic . | . . . . Database Lockouts . | . . . . Manual . | . . . . Terminals . | . . . . Fabricators . | . . . . Repair Stations . | . . . . Recycling Units . | . . . . Scanalyzers . | . . . . Garrison Access . | . . . . Terminal Hacks . | . . . . Fabricator Hacks . | . . . . Repair Station Hacks . | . . . . Recycling Unit Hacks . | . . . . Scanalyzer . | . . . . Garrison Access Hacks . | . . . . Unauthorized Hacks . | . . . . Terminals . | . . . . Fabricators . | . . . . Repair Stations . | . . . . Recycling Units . | . . . . Scanalyzers . | . . . . Garrison Access . | . . . . Data Cores Recovered . | . . . . Used . | . . . . Hacking Detections . | . . . . Full Trace Events . | . . . . Feedback Events . | . . . . Feedback Blocked . | . . . . Robot Schematics Acquired . | . . . . Robots Built . | . . . . Authchips . | . . . . Time . | . . . . Total Robot Build Rating . | . . . . Part Schematics Acquired . | . . . . Parts Built . | . . . . Authchips . | . . . . Time . | . . . . Total Part Build Rating . | . . . . Parts Repaired . | . . . . Time . | . . . . Parts Recycled . | . . . . Recycled Matter . | . . . . Retrieved Matter . | . . . . Retrieved Components . | . . . . Parts Scanalyzed . | . . . . Part Schematics Acquired . | . . . . Parts Damaged . | . . . . Bothacking | -11 -10 -10 -9 ------------ Run | Yrd Mat Min Mat Used RIF Installer . | . . . . Robots Hacked . | . . . . Non-combat . | . . . . Combat . | . . . . Robot Hacks Applied . | . . . . Relay Couplers Released . | . . . . Fabnet Peak Effective % . | . . . . Robots Rewired . | . . . . Allies Hacked . | . . . . Hacks Repelled . | . . . . Allies | -11 -10 -10 -9 -------- Run | Yrd Mat Min Mat Total Allies . | . . . . Largest Group . | . . . . Highest-Rated Group . | . . . . Highest-Rated Ally . | . . . . Total Orders . | . . . . Ally Attacks . | . . . . Total Damage . | . . . . Kills . | . . . . Allies Corrupted . | . . . . Allies Melted . | . . . . Intel | -11 -10 -10 -9 ------- Run | Yrd Mat Min Mat Robot Analysis Total . | . . . . Derelict Logs Recovered 2 | . . 2 . Drone Launches . | . . . . Drone Recoveries . | . . . . Exploration | -11 -10 -10 -9 ------------- Run | Yrd Mat Min Mat Turns Passed 2001 | 73 205 1723 . Spaces Moved 791 | 40 125 626 . Core 124 | 11 . 113 . Treads 344 | 29 125 190 . Legs 323 | . . 323 . Wheels . | . . . . Hover . | . . . . Flight . | . . . . Fastest Speed 50 | 50 160 160 . Average Speed 228 | 158 160 246 . Slowest Speed 600 | 250 160 600 . Overloaded Moves . | . . . . Propulsion Burnouts . | . . . . Robots Hopped . | . . . . Cave-ins Triggered . | . . . . Exploration Rate (%) 31 | 4 25 97 1 Regions Visited 3 Branch Regions 1 Pre-discovered Areas . | . . . . Known Exits Taken . | . . . . Unknown Exits Taken 3 | 1 1 1 . Scrap Searched 1 | . . 1 . Spaces Dug . | . . . . Terrain Destroyed . | . . . . Melee . | . . . . Projectile . | . . . . AOE . | . . . . Terrain Rammed . | . . . . Walls Destroyed . | . . . . Machines Disabled . | . . . . Actions | -11 -10 -10 -9 --------- Run | Yrd Mat Min Mat Total 913 | 47 130 736 . Wait 43 | . . 43 . Move 788 | 39 124 625 . Hop . | . . . . Pick Up 10 | 2 5 3 . Fast Attach 13 | 6 1 6 . Attach 4 | . . 4 . Detach . | . . . . Swap 3 | . . 3 . Drop 4 | . . 4 . Fire 42 | . . 42 . Melee 6 | . . 6 . Ram . | . . . . Kick . | . . . . Crush . | . . . . Escape Stasis . | . . . . Rewire . | . . . . Trap . | . . . . Miscellaneous . | . . . . Route ------- -11/Scrapyard -10/Materials -10/Mines (discovered 2 exits: [*Mat x2]) -9/Materials History --------- Turn | Location | Event 2 | -11/Scrapyard | Met Revision 17 12 | -11/Scrapyard | Discovered new exit (range 15) 74 | -11/Scrapyard | Entered Materials 235 | -10/Materials | Discovered new exit (range 7) 279 | -10/Materials | Entered Mines 306 | -10/Mines | Build established: Mutant 651 | -10/Mines | Destroyed YI-UF0 681 | -10/Mines | Lost 6 parts (1p2n3w) 688 | -10/Mines | Discovered new exit (range 13) 1096 | -10/Mines | A weapon hastily lodged in a ceiling crevice suddenly fell to the ground 1273 | -10/Mines | Core integrity fell below 50% 1322 | -10/Mines | Learned Materials emergency access door positions 1437 | -10/Mines | Discovered new exit (range 8) 1577 | -10/Mines | Build established: Scavenger-Mutant 2002 | -10/Mines | Core integrity fell below 20% 2002 | -10/Mines | Entered Materials 2002 | -9/Materials | Evolved 2 slots: Weapon x2 2002 | -9/Materials | Self-destructed Last Messages --------------- 01410_ Acquired 19 matter. 01437_ EXIT=FOUND 01552_ Sneak attack on R-06 Scavenger. 01566_ S-10 Pest suffers critical hit (Burn). 01566_ S-10 Pest destroyed. 01849_ R-06 Scavenger sends out distress signal. 01853_ S-10 Pest destroyed. 01859_ Acquired 9 matter. 01865_ Dropped Ion Engine. 01865_ Acquired Lgt. Ion Engine. 01872_ Acquired 19 matter. 01881_ K-01 Serf collects debris. 01929_ S-10 Pest destroyed. 01939_ K-01 Serf collects debris. 01941_ Flight Unit melted. 01941_ S-10 Pest destroyed. 01943_ K-01 Serf collects debris. PARAMETERS=WEAPON+2 LOCATION=UNKNOWN GOAL=ESCAPE Map ----- +----------------------------------------------------+ | ??????????????????????????????? | | ??????????????????????????????? | | ??????????????????????????????? | | ??????????????????????????????? | | ??????????????????????????????? | | ??????????????????????????????? | | ??????????????????????????????? | | ??????????????????????????????? | | ??????????????????????????????? | | ??????????????????????????????? | | ??????????????????????????????? | | ??????????????????????????????? | | ??????????????????????????????? | | ??????????????????????????????? | | ??????????????????????????????? | | ??????????????????????????????? | | ??????????????????????????????? | | ??????????????????????????????? | | ??????????????????????????????? | | ??????????????????????????????? | | ??????????????????????????????? | | ??????????????? ## ???????????? | | ???##########?? ## ???????????? | | ???######### # ???????????? | | ???## "" # ???????????? | | ???## @ T + ???????????? | | ???## # ???????????? | | ???#####+### # ???????????? | | ??? ##?? ## ???????????? | | ??????????????? ###???????????? | | ??????????????????????????????? | | ??????????????????????????????? | | ??????????????????????????????? | | ??????????????????????????????? | | ??????????????????????????????? | | ??????????????????????????????? | | ??????????????????????????????? | | ??????????????????????????????? | | ??????????????????????????????? | | ??????????????????????????????? | | ??????????????????????????????? | | ??????????????????????????????? | | ??????????????????????????????? | | ??????????????????????????????? | | ??????????????????????????????? | | ??????????????????????????????? | | ??????????????????????????????? | | ??????????????????????????????? | | ??????????????????????????????? | | ??????????????????????????????? | +----------------------------------------------------+ Best States ------------- Heat Dissipation 39 Energy Generation 10 Energy Capacity 250 Matter Stores 300 Matter Capacity 300 Sight Range 16 Terrain Scan Density 10 Evasion (%) 40 Recoil Reduction 2 Item Schematics ----------------- None Robot Schematics ------------------ None Fabricated ------------ Nothing Alien Tech Used ----------------- None Achievements -------------- None Challenges ------------ None Game ------ Seed GatlingPortableWeb Manual? 0 Play Time 00:07:15 Cumulative 172.8 hours Start 2024.05.13 @ 13:58:57 End 2024.05.13 @ 14:06:23 Sessions 1 Manual Loads 0 Difficulty Rogue Special Mode None Game No. 167 Rogue 162 Adventurer 5 Explorer 0 Win Type - Total 3 Types 2/0/0/1/0/0/0/0/0 Lore% 53 Gallery% 73 Achievement% 55 Wizard Run 0 Options --------- Layout 1 ASCII 0 Keyboard 0 Movement Mouse Keybinds 0 Fullscreen 1 Font 24/Terminus Map View 50x35 Zoom Use 0% Tactical HUD 1 Map Filters NONE Filters NONE Steam 1 RUN: 7e21e6ce-da58-4b93-98e6-0ae37bf8f383